bitfinex/quotes_BTCUSD_20241202
["timestamp","ask_amount","ask_price","bid_price","bid_amount"]
[1733160075442,0.68644666,95796.0,95780.0,0.00085459]
[1733160075443,0.55,95792.0,95791.0,0.0400633]
[1733160075655,0.2,95790.0,95789.0,0.00036323]
[1733160075877,0.35,95786.0,95785.0,0.17912023]
[1733160076101,0.6842013,95786.0,95785.0,0.17912023]
[1733160077229,0.6842013,95786.0,95785.0,0.07472023]
[1733160077448,0.6932013,95786.0,95785.0,0.07572023]
[1733160077683,0.6842013,95786.0,95785.0,0.01208023]
[1733160077936,0.6912013,95786.0,95785.0,2.3e-07]
[1733160078161,0.2,95782.0,95780.0,0.00085459]
[1733160078378,0.6842013,95782.0,95780.0,0.00085459]
[1733160078815,0.55,95776.0,95775.0,0.09760039]
[1733160079051,0.66239377,95776.0,95775.0,0.09760039]
[1733160079276,0.6842013,95776.0,95775.0,0.09760039]
[1733160081047,0.6862013,95776.0,95775.0,0.09760039]
[1733160082009,0.6862013,95776.0,95766.0,0.2]
[1733160082010,0.558838,95768.0,95767.0,1.47955003]
[1733160082248,0.87776241,95768.0,95767.0,1.47955003]
[1733160082468,0.8930393,95768.0,95767.0,1.48117118]
[1733160083410,0.6930393,95768.0,95767.0,1.48117118]
[1733160083641,0.6930393,95768.0,95767.0,1.48217118]
[1733160083642,0.59019409,95768.0,95767.0,1.48217118]
[1733160083856,0.59019409,95768.0,95767.0,1.43643221]
[1733160084107,0.59019409,95768.0,95767.0,1.53926367]
[1733160084108,0.24019409,95768.0,95767.0,1.53926367]
[1733160084350,0.03135609,95768.0,95767.0,1.63409564]
[1733160084570,0.03135609,95768.0,95767.0,1.75994085]
[1733160084785,0.0017312,95786.0,95768.0,0.023]
[1733160085001,0.20883,95772.0,95770.0,0.023]
[1733160085222,0.20883,95772.0,95771.0,0.20567667]
[1733160085443,0.0017312,95786.0,95771.0,0.10284521]
[1733160085444,0.208812,95780.0,95771.0,0.10284521]
[1733160085663,0.0017312,95786.0,95772.0,0.07144753]
[1733160085887,0.0017312,95786.0,95785.0,0.2088]
[1733160086122,0.208762,95803.0,95788.0,0.023]
[1733160086343,0.208773,95798.0,95790.0,0.023]
[1733160086563,0.208784,95793.0,95790.0,0.10284521]
[1733160086789,0.208785,95792.0,95791.0,0.00184741]
[1733160087047,0.29094734,95820.0,95792.0,0.023]
[1733160087264,0.29094734,95820.0,95794.0,0.023]
[1733160087476,0.208763,95802.0,95796.0,0.023]
[1733160087692,0.208766,95801.0,95798.0,0.023]
[1733160087911,0.208768,95800.0,95799.0,0.10284521]
[1733160088134,0.208766,95801.0,95799.0,0.10284521]
[1733160089295,0.208756,95806.0,95786.0,0.0795]
[1733160089518,0.208726,95819.0,95787.0,0.10284521]
[1733160089792,0.208731,95817.0,95787.0,0.10284521]
[1733160090006,0.15,95818.0,95787.0,0.10284521]
[1733160090007,0.20878,95795.0,95787.0,0.10284521]
[1733160090236,0.15,95818.0,95788.0,0.231793]
[1733160090237,0.001,95801.0,95788.0,0.231793]
[1733160090456,0.15,95835.0,95790.0,0.023]
[1733160090678,0.001,95819.0,95792.0,0.023]
[1733160090918,0.001,95819.0,95809.0,0.208748]
[1733160091161,0.208717,95824.0,95810.0,0.23124521]
[1733160091380,0.208725,95820.0,95811.0,0.023]
[1733160091596,0.208734,95816.0,95812.0,0.10284521]
[1733160091811,0.208734,95816.0,95813.0,0.02745611]
[1733160092033,0.208734,95816.0,95814.0,0.10284521]
[1733160092719,0.29094734,95840.0,95810.0,0.1284]
[1733160092720,0.208735,95815.0,95810.0,0.1284]
[1733160092954,0.208733,95816.0,95811.0,0.10284521]
[1733160093202,0.15,95839.0,95812.0,0.02312452]
[1733160093425,0.208729,95819.0,95813.0,0.10469191]
[1733160093890,0.208685,95838.0,95813.0,0.10469191]
[1733160093891,0.00652832,95838.0,95813.0,0.10469191]
[1733160094115,0.15,95839.0,95813.0,0.10469191]
[1733160094560,0.208734,95816.0,95813.0,0.10469191]
[1733160094794,0.208726,95820.0,95814.0,0.02562164]
[1733160095025,0.208726,95820.0,95815.0,0.10469209]
[1733160095243,0.0017312,95824.0,95815.0,0.10469209]
[1733160095476,0.0017312,95824.0,95816.0,0.023]
[1733160095696,0.20867,95845.0,95821.0,0.023]
[1733160095912,0.01518177,95846.0,95845.0,0.1265]
[1733160096210,0.01518177,95846.0,95845.0,0.23119144]
[1733160096431,0.01518177,95846.0,95845.0,0.1255]
[1733160096652,0.208668,95846.0,95845.0,0.1255]
[1733160096870,0.21815342,95846.0,95845.0,0.1255]
[1733160097301,0.21815342,95846.0,95845.0,0.1245]
[1733160097529,0.21815477,95846.0,95845.0,0.1245]
[1733160097769,0.21915477,95846.0,95845.0,0.13795]
[1733160098010,0.21915567,95846.0,95845.0,0.13795]
[1733160098246,0.19915591,95846.0,95845.0,0.13795]
[1733160098499,0.19933307,95846.0,95845.0,0.13795]
[1733160098744,0.01066507,95846.0,95845.0,0.24079521]
[1733160098969,0.00117716,95846.0,95845.0,0.24079521]
[1733160099694,0.01690755,95870.0,95845.0,0.24079521]
[1733160099695,0.208631,95863.0,95848.0,0.208662]
[1733160099948,0.0017296,95870.0,95850.0,0.208659]
[1733160100183,0.208633,95862.0,95851.0,0.10469107]
[1733160100417,0.208642,95858.0,95852.0,0.051146]
[1733160100699,0.208634,95862.0,95853.0,0.10284521]
[1733160100952,0.208634,95862.0,95854.0,0.00184602]
[1733160101192,0.208634,95862.0,95855.0,0.12252791]
[1733160101431,0.0017296,95870.0,95855.0,0.12252791]
[1733160101432,0.208635,95861.0,95858.0,0.03]
[1733160101673,0.208639,95859.0,95858.0,0.03]
[1733160101908,0.21812525,95859.0,95858.0,0.03]
[1733160102146,0.208652,95853.0,95852.0,0.0493]
[1733160102795,0.2181345,95853.0,95852.0,0.0493]
[1733160103025,0.2181345,95853.0,95852.0,0.06257234]
[1733160103260,0.2181345,95853.0,95852.0,0.0493]
[1733160103757,0.0094825,95853.0,95852.0,0.15214521]
[1733160104008,0.208639,95860.0,95852.0,0.15214521]
[1733160104245,0.208629,95864.0,95853.0,0.14095714]
[1733160104461,0.00947992,95859.0,95853.0,0.1046913]
[1733160104700,0.00652585,95881.0,95853.0,0.1046913]
[1733160104701,0.21811192,95863.0,95853.0,0.1046913]
[1733160104938,0.20865,95855.0,95853.0,0.1046913]
[1733160105870,0.20864,95859.0,95853.0,0.1046913]
[1733160106401,0.15652521,95878.0,95853.0,0.1346913]
[1733160106669,0.208641,95859.0,95854.0,0.01839913]
[1733160106908,0.208642,95858.0,95855.0,0.10469131]
[1733160109746,0.207642,95858.0,95855.0,0.10469131]
[1733160110195,0.0017312,95868.0,95855.0,0.10469131]
[1733160110196,0.208637,95861.0,95855.0,0.10469131]
[1733160110433,0.00948836,95860.0,95855.0,0.10469131]
[1733160110650,0.208633,95862.0,95856.0,0.04110514]
[1733160110890,0.208643,95858.0,95857.0,0.10469127]
[1733160111096,0.208643,95858.0,95857.0,0.10284521]
[1733160111308,0.21813864,95858.0,95857.0,0.7]
[1733160111850,0.21813864,95858.0,95837.0,0.0479]
[1733160111851,0.208668,95846.0,95837.0,0.0479]
[1733160112081,0.21816364,95846.0,95838.0,0.00184641]
[1733160112285,0.22835709,95846.0,95838.0,0.00184641]
[1733160112965,0.02468909,95846.0,95845.0,0.19166473]
[1733160114132,0.02468909,95846.0,95845.0,0.89166473]
[1733160114400,0.02468909,95846.0,95845.0,0.89266473]
[1733160114647,0.0332143,95846.0,95845.0,0.89266473]
[1733160115722,0.0332143,95846.0,95845.0,0.19266473]
[1733160116849,0.0332143,95846.0,95845.0,0.19451103]
[1733160117297,0.03293782,95846.0,95845.0,0.19451103]
[1733160117741,0.03293782,95846.0,95845.0,0.47488103]
[1733160117742,0.01728632,95846.0,95845.0,0.47488103]
[1733160118001,0.01728632,95846.0,95845.0,0.47303473]
[1733160118212,0.01728632,95846.0,95845.0,1.17303473]
[1733160118665,0.00652485,95860.0,95845.0,0.96422973]
[1733160118910,0.01529874,95859.0,95849.0,0.20866]
[1733160119200,0.01529874,95858.0,95851.0,0.208657]
[1733160119383,0.01529874,95857.0,95853.0,0.208652]
[1733160119610,0.208628,95865.0,95855.0,0.208648]
[1733160119611,0.01529874,95856.0,95855.0,0.208648]
[1733160119828,0.01529874,95856.0,95855.0,0.13602517]
[1733160120045,0.01529874,95856.0,95855.0,0.10469124]
[1733160120259,0.2103522,95868.0,95855.0,0.10469124]
[1733160120260,0.0017312,95868.0,95855.0,0.22929124]
[1733160120486,0.01531555,95867.0,95856.0,0.52013721]
[1733160120734,0.01531555,95867.0,95855.0,0.1246]
[1733160120735,0.01531555,95867.0,95865.0,0.208625]
[1733160120944,0.0017312,95868.0,95865.0,0.208625]
[1733160120945,0.01531708,95866.0,95865.0,0.41725]
[1733160121165,0.0017312,95868.0,95866.0,0.1293]
[1733160121378,0.0017312,95868.0,95867.0,0.208622]
[1733160121591,0.0017312,95868.0,95867.0,0.31146721]
[1733160121850,0.0017312,95868.0,95867.0,0.39726993]
[1733160122092,0.0017346,95896.0,95879.0,0.208595]
[1733160122377,0.0017346,95896.0,95881.0,0.257291]
[1733160122622,0.0017346,95896.0,95881.0,0.38313621]
[1733160122848,0.0017346,95896.0,95888.0,0.023]
[1733160123106,0.0017346,95896.0,95881.0,0.15154521]
[1733160123107,0.0017346,95896.0,95891.0,0.10284521]
[1733160123319,0.0017346,95896.0,95876.0,0.208601]
[1733160123320,0.208564,95894.0,95883.0,0.7]
[1733160123547,0.208564,95894.0,95867.0,0.21360272]
[1733160123548,0.00232525,95896.0,95867.0,0.21360272]
[1733160123772,0.18822496,95890.0,95868.0,0.10469076]
[1733160123997,0.00232525,95896.0,95868.0,0.10469076]
[1733160124219,0.208617,95870.0,95868.0,0.10469076]
[1733160124439,0.18822496,95880.0,95851.0,0.0786]
[1733160124698,0.20862,95868.0,95867.0,0.001]
[1733160124911,0.208609,95873.0,95867.0,0.10284521]
[1733160125174,0.208618,95869.0,95868.0,0.01213043]
[1733160125387,0.208609,95873.0,95868.0,0.01213043]
[1733160125388,0.208609,95873.0,95868.0,0.11312973]
[1733160125657,0.15,95892.0,95869.0,0.00184582]
[1733160125841,0.417223,95872.0,95870.0,0.1046909]
[1733160126086,0.417223,95872.0,95870.0,0.10284521]
[1733160126303,0.417223,95872.0,95871.0,0.04131297]
[1733160126523,0.417223,95872.0,95871.0,0.14415818]
[1733160127214,0.208611,95872.0,95871.0,0.14415818]
[1733160128147,0.208611,95872.0,95871.0,0.03]
[1733160128589,0.209205,95872.0,95871.0,0.03]
[1733160128825,0.15,95871.0,95845.0,0.00910736]
[1733160129061,0.208668,95846.0,95845.0,0.00910736]
[1733160129462,0.21826808,95846.0,95845.0,0.00910736]
[1733160129740,0.208668,95846.0,95845.0,0.00910736]
[1733160129962,0.21826766,95846.0,95845.0,0.00851336]
[1733160130199,0.21826766,95846.0,95845.0,0.11135857]
[1733160130420,0.21826766,95846.0,95845.0,0.11153573]
[1733160130644,0.21826766,95846.0,95845.0,0.00869052]
[1733160130870,0.21826766,95846.0,95845.0,0.00104216]
[1733160131090,0.00959966,95846.0,95845.0,0.10388737]
[1733160131313,0.02495896,95846.0,95845.0,0.10388737]
[1733160131537,0.02495896,95846.0,95845.0,0.10688737]
[1733160131986,0.02495896,95846.0,95845.0,0.00404216]
[1733160133465,0.02495896,95846.0,95845.0,0.10688737]
[1733160133702,0.02495896,95846.0,95845.0,0.1194225]
[1733160133946,0.02495896,95846.0,95845.0,0.1672225]
[1733160134178,0.02495896,95846.0,95845.0,0.16051786]
[1733160134412,0.02495896,95846.0,95845.0,0.11171786]
[1733160134790,0.02495896,95846.0,95845.0,0.11271786]
[1733160135014,0.208643,95858.0,95845.0,0.11171786]
[1733160135252,0.208618,95869.0,95846.0,0.01601793]
[1733160135525,0.208655,95852.0,95847.0,0.10284521]
[1733160135764,0.38822496,95880.0,95848.0,0.0018462]
[1733160136003,0.208592,95881.0,95848.0,0.0018462]
[1733160136004,0.01534939,95868.0,95851.0,0.10284521]
[1733160136221,0.01535459,95867.0,95856.0,0.208644]
[1733160136439,0.22397859,95866.0,95857.0,0.10469113]
[1733160136678,0.02494796,95865.0,95857.0,0.10469113]
[1733160136927,0.208624,95866.0,95857.0,0.10469113]
[1733160136928,0.02494796,95864.0,95857.0,0.10469113]
[1733160137162,0.02494796,95863.0,95857.0,0.10469113]
[1733160137464,0.02494796,95862.0,95858.0,0.01291275]
[1733160137719,0.02494796,95862.0,95845.0,0.208669]
[1733160137720,0.208659,95850.0,95762.0,0.3]
[1733160137929,0.208659,95850.0,95760.0,0.18822496]
[1733160137930,0.208709,95827.0,95826.0,0.0804]
[1733160138177,0.02494796,95827.0,95822.0,0.045]
[1733160138432,0.2,95846.0,95826.0,0.10284521]
[1733160138664,0.208707,95828.0,95827.0,0.10284521]
[1733160138901,0.23363622,95828.0,95827.0,0.10284521]
[1733160139376,0.23363622,95828.0,95827.0,0.11762973]
[1733160140354,0.21829516,95828.0,95827.0,0.10284521]
[1733160140841,0.21829516,95828.0,95827.0,0.10684521]
[1733160142543,0.00958816,95828.0,95827.0,0.10869189]
[1733160142779,0.208689,95837.0,95827.0,0.10869189]
[1733160143044,0.208689,95837.0,95828.0,0.00184653]
[1733160143309,0.208689,95837.0,95829.0,0.16180391]
[1733160143310,0.00958887,95836.0,95829.0,0.16180391]
[1733160143541,0.00017702,95845.0,95829.0,0.16180391]
[1733160143769,0.00958637,95844.0,95829.0,0.16180391]
[1733160144018,0.208683,95840.0,95829.0,0.16180391]
[1733160144247,0.21826937,95839.0,95829.0,0.16180391]
[1733160144476,0.00017702,95845.0,95829.0,0.16180391]
[1733160144477,0.00017702,95845.0,95835.0,0.0488]
[1733160144708,0.00017702,95845.0,95836.0,0.1046914]
[1733160144932,0.001,95844.0,95836.0,0.1046914]
[1733160145389,0.00017702,95845.0,95836.0,0.1046914]
[1733160145602,0.00017702,95845.0,95837.0,0.208687]
[1733160145817,0.00017702,95845.0,95838.0,0.16177878]
[1733160146039,0.208674,95843.0,95838.0,0.16177878]
[1733160146261,0.208676,95842.0,95838.0,0.10469154]
[1733160146703,0.208376,95842.0,95838.0,0.10469154]
[1733160146931,0.208679,95841.0,95838.0,0.10284521]
[1733160147156,0.00017702,95845.0,95800.0,0.18822496]
[1733160147157,0.00017702,95845.0,95820.0,0.0832]
[1733160147390,0.00017702,95845.0,95828.0,0.10284521]
[1733160147644,0.00017702,95845.0,95829.0,0.010371]
[1733160147876,0.00017702,95845.0,95844.0,0.0783]
[1733160148129,0.00017702,95845.0,95844.0,0.10284521]
[1733160148353,0.00017702,95845.0,95827.0,0.0048648]
[1733160148601,0.208703,95830.0,95828.0,0.10284521]
[1733160148840,0.208703,95830.0,95829.0,0.010771]
[1733160149832,0.2,95842.0,95827.0,0.0008648]
[1733160150067,0.00958043,95841.0,95829.0,0.004]
[1733160150297,0.00958043,95841.0,95830.0,0.00184665]
[1733160150756,0.28287702,95845.0,95830.0,0.00184665]
[1733160150757,0.208681,95840.0,95830.0,0.00184665]
[1733160150980,0.208683,95839.0,95830.0,0.00184665]
[1733160151209,0.208698,95832.0,95831.0,0.00184661]
[1733160151429,0.208698,95832.0,95827.0,0.0008648]
[1733160151430,0.208698,95832.0,95830.0,0.00184668]
[1733160152618,0.00017702,95845.0,95831.0,0.10469189]
[1733160152837,0.00017702,95845.0,95832.0,0.08725567]
[1733160153059,0.208672,95844.0,95833.0,0.10469165]
[1733160153282,0.208681,95840.0,95833.0,0.10469165]
[1733160153975,0.00017702,95845.0,95833.0,0.10469165]
[1733160154202,0.00017702,95845.0,95843.0,0.208673]
[1733160154427,0.00017702,95845.0,95835.0,0.0494]
[1733160154428,0.00017702,95845.0,95844.0,0.12555867]
[1733160156055,0.00017702,95845.0,95844.0,0.20625867]
[1733160156311,0.00958852,95875.0,95844.0,0.25245867]
[1733160156541,0.208604,95876.0,95859.0,0.208637]
[1733160156803,0.00959337,95879.0,95861.0,0.208635]
[1733160157038,0.2103194,95882.0,95861.0,0.208635]
[1733160157039,0.0017294,95882.0,95862.0,0.2837873]
[1733160157270,0.0017294,95882.0,95862.0,0.28194152]
[1733160157778,0.0017294,95882.0,95881.0,0.208591]
[1733160158036,0.2,95881.0,95862.0,0.10284521]
[1733160158260,0.2,95859.0,95844.0,0.0208673]
[1733160158471,0.2,95859.0,95845.0,0.10284521]
[1733160158713,0.208655,95852.0,95846.0,0.00184626]
[1733160158936,0.208655,95852.0,95846.0,0.10469147]
[1733160159377,0.208651,95854.0,95846.0,0.10469147]
[1733160159605,0.208653,95853.0,95846.0,0.10469147]
[1733160159842,0.208646,95856.0,95847.0,0.01046915]
[1733160160125,0.2,95859.0,95847.0,0.01046915]
[1733160160126,0.408639,95859.0,95848.0,0.2105092]
[1733160160418,0.208643,95858.0,95849.0,0.10284521]
[1733160160600,0.358623,95867.0,95849.0,0.10284521]
[1733160160601,0.2,95880.0,95850.0,0.00184611]
[1733160160842,0.00958511,95879.0,95860.0,0.208637]
[1733160161073,0.208602,95877.0,95861.0,0.15039105]
[1733160161292,0.208612,95872.0,95861.0,0.15039105]
[1733160161772,0.208605,95875.0,95862.0,0.208633]
[1733160161995,0.417192,95879.0,95863.0,0.31332211]
[1733160162259,0.00017709,95881.0,95864.0,0.05676601]
[1733160162489,0.00017709,95881.0,95873.0,0.208607]
[1733160162719,0.00017709,95881.0,95876.0,0.208602]
[1733160162948,0.00017709,95881.0,95874.0,0.18539089]
[1733160162949,0.00017709,95881.0,95878.0,0.208597]
[1733160163212,0.00017709,95881.0,95880.0,0.208594]
[1733160163465,0.00017709,95881.0,95880.0,0.39440354]
[1733160163693,0.00017709,95881.0,95880.0,0.39255807]
[1733160164922,0.00017709,95881.0,95880.0,0.44185807]
[1733160165141,0.00112336,95896.0,95895.0,0.208561]
[1733160165407,0.00171354,95896.0,95895.0,0.38760621]
[1733160165616,0.00171354,95896.0,95895.0,0.42636683]
[1733160166610,0.00171354,95896.0,95895.0,0.14960583]
[1733160166860,0.00171354,95896.0,95895.0,0.14345111]
[1733160167082,0.00171354,95896.0,95895.0,0.15245111]
[1733160168498,0.00171354,95896.0,95895.0,0.11184521]
[1733160169905,0.00171354,95896.0,95895.0,0.10284521]
[1733160170134,0.00171354,95896.0,95895.0,0.10884521]
[1733160170584,0.00171354,95896.0,95895.0,0.10284521]
[1733160170808,0.00171354,95896.0,95895.0,0.006]
[1733160171519,0.00171354,95896.0,95895.0,0.10884521]
[1733160171734,0.00171354,95896.0,95895.0,0.11991427]
[1733160172391,0.00171354,95896.0,95895.0,0.12175959]
[1733160172617,0.00171354,95896.0,95895.0,0.33032059]
[1733160172844,0.00171354,95896.0,95895.0,0.32847527]
[1733160173283,0.00171354,95896.0,95895.0,0.11991427]
[1733160173501,0.00171354,95896.0,95895.0,0.1217596]
[1733160173954,0.00171354,95896.0,95895.0,0.4131206]
[1733160174211,0.00171354,95896.0,95895.0,0.41127527]
[1733160174466,0.00171354,95896.0,95895.0,0.32847527]
[1733160175177,0.00171354,95896.0,95895.0,0.11991427]
[1733160175390,0.00171354,95896.0,95895.0,0.12175947]
[1733160181598,0.00171354,95896.0,95895.0,0.11575947]
[1733160181837,0.00171354,95896.0,95895.0,0.25175947]
[1733160182105,0.00171354,95896.0,95895.0,0.24991427]
[1733160182646,0.00171354,95896.0,95895.0,0.24091427]
[1733160182900,0.01533443,95934.0,95915.0,0.208517]
[1733160183114,0.00959241,95937.0,95915.0,0.44390686]
[1733160183371,0.0017296,95942.0,95915.0,0.44390686]
[1733160183372,0.01132201,95942.0,95915.0,0.44206221]
[1733160183587,0.0017296,95942.0,95915.0,0.44206221]
[1733160183840,0.0017296,95942.0,95919.0,0.208509]
[1733160184110,0.0017296,95942.0,95919.0,0.37825582]
[1733160184350,0.0017296,95942.0,95919.0,0.37641133]
[1733160184651,0.0017296,95942.0,95935.0,0.416946]
[1733160184884,0.0017296,95942.0,95937.0,0.10284521]
[1733160185115,0.0017296,95942.0,95937.0,0.22838952]
[1733160185338,0.0017296,95942.0,95938.0,0.416934]
[1733160185556,0.0017296,95942.0,95941.0,0.12584521]
[1733160185777,0.0017296,95942.0,95941.0,0.12768923]
[1733160186012,0.0017326,95944.0,95942.0,0.208459]
[1733160186242,0.00190625,95943.0,95942.0,0.31314817]
[1733160186463,0.00190625,95943.0,95942.0,0.31130421]
[1733160188883,0.00190625,95943.0,95942.0,1.10503579]
[1733160189115,0.00190625,95943.0,95942.0,1.11403579]
[1733160189336,0.00190625,95943.0,95942.0,1.10503579]
[1733160189785,0.00190625,95943.0,95942.0,1.11403579]
[1733160190976,0.00190625,95943.0,95942.0,1.10503579]
[1733160191222,0.00190625,95943.0,95942.0,0.42803579]
[1733160191459,0.00190625,95943.0,95942.0,0.70613579]
[1733160191711,0.0095716,95981.0,95943.0,0.2513]
[1733160191950,0.253714,96009.0,95942.0,0.91957679]
[1733160191951,0.0095716,95991.0,95978.0,0.18114521]
[1733160192186,0.01531663,95998.0,95990.0,0.208355]
[1733160192417,0.00956641,95997.0,95991.0,0.10468846]
[1733160192697,0.01531663,96011.0,95991.0,0.10468846]
[1733160192937,0.2,96030.0,95991.0,0.10468846]
[1733160193169,0.2,96027.0,95991.0,0.27768846]
[1733160193400,0.00145397,95992.0,95991.0,0.17228536]
[1733160193643,0.00145397,95992.0,95991.0,0.17412851]
[1733160193870,0.00145397,95992.0,95991.0,0.87412851]
[1733160194100,0.00145397,95992.0,95991.0,0.87228536]
[1733160194610,0.00345397,95992.0,95991.0,0.87228536]
[1733160195311,0.00345397,95992.0,95991.0,0.87233568]
[1733160195759,0.00345397,95992.0,95991.0,0.80289553]
[1733160195983,0.21302071,95992.0,95991.0,5.032e-05]
[1733160196207,0.57831764,95992.0,95991.0,5.032e-05]
[1733160197981,0.2,95969.0,95957.0,0.208424]
[1733160198240,0.2,95969.0,95960.0,0.7]
[1733160198465,0.00956674,95968.0,95961.0,0.20752071]
[1733160198686,0.00956674,95967.0,95961.0,0.20752071]
[1733160198919,0.208407,95966.0,95961.0,0.20752071]
[1733160199142,0.2,95969.0,95961.0,0.20752071]
[1733160199360,0.208414,95963.0,95962.0,0.7]
[1733160199594,0.21797491,95963.0,95962.0,0.7]
[1733160199812,0.23327237,95963.0,95962.0,0.7]
[1733160200035,0.21797491,95963.0,95962.0,0.78118452]
[1733160200255,0.23327237,95963.0,95962.0,0.78118452]
[1733160200695,0.23327237,95963.0,95962.0,0.08118452]
[1733160200910,0.23327237,95963.0,95961.0,0.10284521]
[1733160201122,0.02485837,95962.0,95961.0,0.10284521]
[1733160201337,0.02485837,95962.0,95961.0,0.11184521]
[1733160201572,0.02485837,95962.0,95961.0,0.10284521]
[1733160202049,0.02485837,95962.0,95949.0,0.00184423]
[1733160202050,0.208438,95952.0,95949.0,0.00184423]
[1733160202273,0.208438,95952.0,95857.0,0.3]
[1733160202274,0.208484,95931.0,95929.0,0.10284521]
[1733160202949,0.00957284,95930.0,95929.0,0.10284521]
[1733160203177,0.00957284,95930.0,95929.0,0.10469005]
[1733160203407,0.20957284,95930.0,95929.0,0.10284521]
[1733160203628,0.2,95927.0,95926.0,0.00017705]
[1733160204079,0.20957284,95927.0,95926.0,0.00017705]
[1733160204740,0.20957813,95927.0,95926.0,0.00017705]
[1733160204969,0.55957813,95927.0,95926.0,0.00017705]
[1733160205430,0.55,95927.0,95926.0,0.00017705]
[1733160205640,0.55,95927.0,95926.0,0.00117705]
[1733160205875,0.55,95927.0,95890.0,0.208571]
[1733160205876,0.55,95927.0,95871.0,0.1269]
[1733160205877,0.608522,95913.0,95871.0,0.1269]
[1733160206097,0.78342867,95913.0,95867.0,0.20862]
[1733160206313,0.80642867,95913.0,95883.0,0.00184543]
[1733160206993,0.78342867,95913.0,95895.0,0.208559]
[1733160207231,0.57490667,95913.0,95896.0,0.00184529]
[1733160207449,0.22490667,95913.0,95897.0,0.00184526]
[1733160207674,0.22790667,95913.0,95912.0,0.0027284]
[1733160207909,0.02490667,95913.0,95912.0,0.10457361]
[1733160208137,0.02490667,95913.0,95912.0,0.11503097]
[1733160208138,0.00957949,95913.0,95912.0,0.11503097]
[1733160208372,0.01257949,95913.0,95912.0,0.117876]
[1733160209063,0.2,95919.0,95912.0,0.116876]
[1733160209277,0.208498,95925.0,95913.0,0.10469024]
[1733160209278,0.2,95923.0,95913.0,0.10469024]
[1733160209511,0.2084,95970.0,95913.0,0.10469024]
[1733160209512,0.00957459,95922.0,95918.0,0.208509]
[1733160209799,0.00957546,95926.0,95919.0,0.1046901]
[1733160209992,0.00957546,95925.0,95919.0,0.1046901]
[1733160210212,0.00957546,95926.0,95919.0,0.1046901]
[1733160210449,0.00017682,95927.0,95919.0,0.1046901]
[1733160210669,0.00017682,95927.0,95922.0,0.208502]
[1733160210881,0.00017682,95927.0,95923.0,0.10468996]
[1733160211138,0.00017682,95927.0,95924.0,0.208498]
[1733160211354,0.2,95935.0,95922.0,0.208502]
[1733160211355,0.00465288,95932.0,95925.0,0.10468996]
[1733160211573,0.2,95935.0,95925.0,0.10468996]
[1733160211574,0.2,95935.0,95926.0,0.208494]
[1733160211811,0.2,95942.0,95927.0,0.15792314]
[1733160212008,0.2,95939.0,95932.0,0.208479]
[1733160212221,0.0766,95967.0,95933.0,0.1046899]
[1733160212440,0.4,95950.0,95934.0,0.208476]
[1733160212661,0.4,95950.0,95923.0,0.003]
[1733160212662,0.0762,95942.0,95923.0,0.003]
[1733160212882,0.4,95924.0,95923.0,0.003]
[1733160213115,0.7585,95923.0,95922.0,0.00017682]
[1733160213332,0.7585,95923.0,95882.0,0.077729]
[1733160213333,0.758522,95913.0,95882.0,0.001729]
[1733160213566,0.83083948,95913.0,95883.0,0.00184545]
[1733160214236,0.83083948,95913.0,95886.0,0.20858]
[1733160214506,0.77383948,95913.0,95887.0,0.00184535]
[1733160214719,0.77383948,95913.0,95888.0,0.00184529]
[1733160214950,0.57683948,95913.0,95912.0,0.0027284]
[1733160215174,0.57383948,95913.0,95912.0,0.0017284]
[1733160215400,0.208518,95915.0,95912.0,0.0017284]
[1733160215401,0.408518,95915.0,95912.0,0.0017284]
[1733160215616,0.203,95913.0,95912.0,0.0017284]
[1733160215839,0.003,95913.0,95912.0,0.10457361]
[1733160216072,0.203,95913.0,95912.0,0.10457361]
[1733160216286,0.2,95913.0,95912.0,0.11503097]
[1733160216937,0.2,95914.0,95912.0,0.11503097]
[1733160217163,0.2,95914.0,95913.0,0.10284521]
[1733160217441,0.2,95921.0,95913.0,0.10284521]
[1733160217677,0.2,95915.0,95914.0,0.00184508]
[1733160217894,0.20852,95914.0,95912.0,0.0017284]
[1733160218103,0.2,95913.0,95912.0,0.0017284]
[1733160218323,0.408522,95913.0,95912.0,0.0017284]
[1733160218547,0.40851,95919.0,95912.0,0.0017284]
[1733160218760,0.2,95913.0,95912.0,0.0017284]
[1733160219410,0.2,95913.0,95912.0,0.10457361]
[1733160219637,0.2,95919.0,95912.0,0.11603097]
[1733160219857,0.0792,95954.0,95920.0,0.208506]
[1733160219858,0.2,95927.0,95920.0,0.208506]
[1733160220090,0.208482,95932.0,95921.0,0.10284521]
[1733160220306,0.2,95931.0,95921.0,0.10284521]
[1733160220537,0.2,95931.0,95922.0,0.208502]
[1733160220762,0.20849,95928.0,95922.0,0.10469003]
[1733160220995,0.20849,95928.0,95922.0,0.13416551]
[1733160221889,0.2,95931.0,95922.0,0.13416551]
[1733160222368,0.2,95931.0,95922.0,0.13601034]
[1733160222822,0.2,95931.0,95922.0,0.10284521]
[1733160222823,0.208495,95926.0,95922.0,0.10284521]
[1733160223036,0.20849,95928.0,95922.0,0.10284521]
[1733160223489,0.408483,95931.0,95922.0,0.10784521]
[1733160223490,0.2,95931.0,95922.0,0.10784521]
[1733160223705,0.2,95931.0,95922.0,0.31634721]
[1733160223924,0.2,95939.0,95922.0,0.31634721]
[1733160224148,0.2,95937.0,95922.0,0.31634721]
[1733160224380,0.2,95945.0,95922.0,0.39474721]
[1733160224816,0.2,95937.0,95922.0,0.39474721]
[1733160225101,0.2,95937.0,95922.0,0.38974721]
[1733160225323,0.208495,95926.0,95922.0,0.10484521]
[1733160225554,0.208486,95930.0,95922.0,0.10284521]
[1733160225777,0.20934,95934.0,95922.0,0.10784521]
[1733160225778,0.208479,95933.0,95922.0,0.10784521]
[1733160226002,0.000864,95934.0,95922.0,0.10469002]
[1733160226481,0.000864,95934.0,95922.0,0.11069002]
[1733160226693,0.000864,95934.0,95922.0,0.18890192]
[1733160228271,0.000864,95934.0,95922.0,0.41680192]
[1733160228486,0.000864,95934.0,95922.0,0.41495711]
[1733160229346,0.000864,95934.0,95922.0,0.40895711]
[1733160229566,0.000864,95934.0,95922.0,0.41795711]
[1733160229788,0.000864,95934.0,95922.0,0.41968531]
[1733160230234,0.00104095,95923.0,95922.0,0.41968531]
[1733160231837,0.00104095,95923.0,95922.0,0.26968531]
[1733160233208,0.20104095,95923.0,95922.0,0.11357341]